Cogmind - Beta 9.6 @@@ ROGUE MODE // 2020.06.14 @ 16:31:19 Player: Teratos Result: Self-destructed Performance ------------- Evolutions (1) 500 Regions Visited (2) 400 Robots Destroyed (19) 95 Value Destroyed (390) 390 Prototype IDs (0) 0 Alien Tech Used (0) 0 Bonus (0) 0 TOTAL SCORE: 1385 Bonus ------- None Cogmind --------- Core Integrity 295/400 Matter 300/300 Energy 100/100 System Corruption 0% Temperature Cool (0) Movement Treading (160) Location -9/Materials Parts ------- > --- POWER (1) -------- (None) > --- PROPULSION (2) --- Light Treads > --- UTILITY (3) ------ (None) > --- WEAPON (3) ------- (None) > --- INVENTORY (4) ---- (None) Peak State ------------ > --- POWER ------------ Improved Ion Engine > --- PROPULSION ------- Light Treads Light Treads > --- UTILITY ---------- Improved Heat Sink Improved Heat Sink > --- WEAPON ----------- Small Laser Beam Rifle > --- INVENTORY -------- (None) [Rating: 13] Favorites ----------- Power Light Ion Engine Engine Light Ion Engine Power Core Light Nuclear Core Propulsion Wheel Treads Light Treads Wheel Wheel Utility Improved Heat Sink Device Improved Heat Sink Storage Small Storage Unit Weapon Medium Laser Energy Gun Medium Laser Ballistic Gun Assault Rifle Build | -11 -10 -9 ------- Run | Scr Mat Mat Slots Evolved 2 | . . 2 Power . | . . . Propulsion . | . . . Utility 1 | . . 1 Weapon 1 | . . 1 Parts Attached 24 | 6 13 5 Power 5 | 1 3 1 Engine 4 | 1 2 1 Core 1 | . 1 . Reactor . | . . . Propulsion 7 | 2 3 2 Treads 4 | 2 . 2 Leg . | . . . Wheel 3 | . 3 . Hover . | . . . Flight . | . . . Utility 4 | 1 3 . Device 3 | . 3 . Storage 1 | 1 . . Processor . | . . . Hackware . | . . . Protection . | . . . Artifact . | . . . Weapon 8 | 2 4 2 Energy Gun 6 | 1 3 2 Energy Cannon . | . . . Ballistic Gun 2 | 1 1 . Ballistic Cannon . | . . . Launcher . | . . . Special Weapon . | . . . Impact Weapon . | . . . Slashing Weapon . | . . . Piercing Weapon . | . . . Special Melee Weapon . | . . . Unidentified Prototypes . | . . . Parts Lost 11 | . 1 10 Power 2 | . . 2 Propulsion 3 | . 1 2 Utility 2 | . . 2 Weapon 4 | . . 4 Highest Loss Streak 10 | . 1 10 Average Slot Usage (%) 86 | . 91 66 Engine 12 | . 13 10 Treads 8 | . 8 11 Wheel 16 | . 18 8 Device 13 | . 12 19 Storage 8 | . 10 . Energy Gun 15 | . 15 15 Ballistic Gun 9 | . 11 . Naked Turns . | . . . Heaviest Build 14 | 11 14 13 Greatest Support 40 | 40 40 40 Greatest Overweight (x) 1 | 1 1 . Average Overweight (x) . | . . . Largest Inventory Capacity 6 | 6 6 4 Average Capacity 5 | 5 5 4 Most Carried 1 | . 1 1 Average Carried . | . . . Final Capacity 6 | 6 4 4 Final Carried 1 | . 1 . Class Distribution -------------------- 64% | Mutant 35% | Scavenger-Mutant Dominant Class ---------------- Mutant | -10/Materials Scavenger-Mutant | -9/Materials Resources | -11 -10 -9 ----------- Run | Scr Mat Mat Matter Collected 599 | 182 367 50 Remotely . | . . . Salvage Created 612 | . 523 89 Parts 46 | . 38 8 Haulers Intercepted 1 | . 1 . Recyclers Shooed 1 | . 1 . Parts Field Recycled . | . . . Retrieved Matter . | . . . Parts Self-Destructed . | . . . Prevented . | . . . Kills | -11 -10 -9 ------- Run | Scr Mat Mat Combat Hostiles Destroyed 10 | . 8 2 Guns 10 | . 8 2 Classes Destroyed 7 | . 5 2 Worker 4 | . 4 . Builder 3 | . 2 1 Hauler 1 | . 1 . Watcher 1 | . 1 . Swarmer 1 | . . 1 Grunt 8 | . 8 . Sentry 1 | . . 1 Best Kill Streak 3 | . 3 2 Combat Bots Only 3 | . 3 1 Max Kills in Single Turn 1 | . 1 1 Gunslinging . | . . . Exploded . | . . . Melee . | . . . Uniques/NPCs Destroyed . | . . . Combat | -11 -10 -9 -------- Run | Scr Mat Mat Damage Taken 1073 | . 400 673 Core 194 | . 89 105 Absorbed by Shields . | . . . Core Remaining (%) 82 | 100 64 . Volleys Fired 92 | . 70 22 Largest 2 | . 2 2 Hottest 100 | . 100 90 Shots Fired 162 | . 138 24 Gun 162 | . 138 24 Cannon . | . . . Launcher . | . . . Special . | . . . Kinetic 68 | . 68 . Thermal 94 | . 70 24 Explosive . | . . . Electromagnetic . | . . . Robot Hit Streak 11 | . 11 6 Robot Miss Streak 7 | . 3 7 Penetration Max . | . . . Secondary Targets 1 | . 1 . Max Gunslinging Chain 1 | . 1 . Shots Hit Robots 105 | . 91 14 Core Hits 32 | . 27 5 Critical Hits . | . . . Critical Kills . | . . . Critical Parts Destroyed . | . . . Melee Attacks . | . . . Impact . | . . . Slashing . | . . . Piercing . | . . . Sneak Attacks . | . . . Combat Hostiles . | . . . Follow-up Attacks . | . . . Damage Inflicted 1312 | . 1133 179 Guns 1309 | . 1133 176 Cannons . | . . . Explosions . | . . . Melee . | . . . Ramming 3 | . . 3 Kinetic 630 | . 630 . Thermal 679 | . 503 176 Explosive . | . . . Electromagnetic . | . . . Impact . | . . . Slashing . | . . . Piercing . | . . . Highest Corruption . | . . . Average Corruption . | . . . Corruption Purged . | . . . Overload Shots . | . . . Overflow Damage . | . . . Projectiles . | . . . Explosions . | . . . Melee . | . . . Knockbacks . | . . . Impact . | . . . Kinetic . | . . . Secondary . | . . . Self-Inflicted Damage . | . . . Shots . | . . . Rammed 4 | . . 4 Targets Rammed 4 | . . 4 Kicked . | . . . Crushed . | . . . Highest Temperature 171 | . 171 . Average Temperature 41 | . 41 . Received Heat Transfer 351 | . 216 135 Siege Activations . | . . . Robots Corrupted . | . . . Combat Hostiles . | . . . Parts Fried . | . . . Impact Corruptions . | . . . Robots Melted . | . . . Combat Hostiles . | . . . Parts Melted 1 | . 1 . Heat Transferred 1891 | . 1480 411 Parts Sabotaged . | . . . Parts Stolen . | . . . Parts Stripped . | . . . Power Chain Reactions . | . . . Missiles Intercepted . | . . . Alert | -11 -10 -9 ------- Run | Scr Mat Mat Peak Influence 215 | . 215 86 Average Influence 85 | . 97 60 Maximum Alert Level 1 | . 1 . Low Security (%) 98 | 100 98 100 Level 1 1 | . 1 . Level 2 . | . . . Level 3 . | . . . Level 4 . | . . . Level 5 . | . . . High Security . | . . . Max Security . | . . . Squads Dispatched 2 | . 2 . Investigation 1 | . 1 . Extermination . | . . . Reinforcement 1 | . 1 . Assault . | . . . Garrison . | . . . Intercept . | . . . Construction Impeded . | . . . Haulers Reinforced . | . . . Stealth | -11 -10 -9 --------- Run | Scr Mat Mat Distress Signals 3 | . 2 1 Communications Jammed . | . . . Distress Signals . | . . . Times Spotted 21 | . 13 8 Peak Tracking Total 5 | . 5 5 Tactical Retreats 1 | . . 1 Traps | -11 -10 -9 ------- Run | Scr Mat Mat Traps Triggered 2 | . 2 . Indirectly . | . . . Trap Hack Attempts . | . . . Triggered . | . . . Disarmed . | . . . Reprogrammed . | . . . Reused . | . . . Traps Extracted . | . . . Installed . | . . . Triggered . | . . . Machines | -11 -10 -9 ---------- Run | Scr Mat Mat Machines Disabled . | . . . Max in Single Turn . | . . . Machines Sabotaged . | . . . Garrisons Compromised . | . . . Overloaded Fab Kills . | . . . Fab Network Shutdowns . | . . . Hacking | -11 -10 -9 --------- Run | Scr Mat Mat Machines Accessed 1 | . 1 . Terminals . | . . . Fabricators . | . . . Repair Stations 1 | . 1 . Recycling Units . | . . . Scanalyzers . | . . . Garrison Access . | . . . Total Hacks 4 | . 4 . Successful 4 | . 4 . Failed . | . . . Catastrophic . | . . . Database Lockouts . | . . . Manual . | . . . Terminals . | . . . Fabricators . | . . . Repair Stations 4 | . 4 . Recycling Units . | . . . Scanalyzers . | . . . Garrison Access . | . . . Terminal Hacks . | . . . Fabricator Hacks . | . . . Repair Station Hacks 4 | . 4 . Scan Component 2 | . 2 . Repair 2 | . 2 . Recycling Unit Hacks . | . . . Scanalyzer . | . . . Garrison Access Hacks . | . . . Unauthorized Hacks . | . . . Terminals . | . . . Fabricators . | . . . Repair Stations . | . . . Recycling Units . | . . . Scanalyzers . | . . . Garrison Access . | . . . Data Cores Recovered . | . . . Used . | . . . Hacking Detections 1 | . 1 . Full Trace Events . | . . . Feedback Events . | . . . Feedback Blocked . | . . . Robot Schematics Acquired . | . . . Robots Built . | . . . Matter . | . . . Time . | . . . Total Robot Build Rating . | . . . Part Schematics Acquired . | . . . Parts Built . | . . . Matter . | . . . Time . | . . . Total Part Build Rating . | . . . Parts Repaired 2 | . 2 . Time 52 | . 52 . Parts Recycled . | . . . Recycled Matter . | . . . Retrieved Matter . | . . . Retrieved Components . | . . . Parts Scanalyzed . | . . . Part Schematics Acquired . | . . . Parts Damaged . | . . . Bothacking | -11 -10 -9 ------------ Run | Scr Mat Mat Used RIF Installer . | . . . Robots Hacked . | . . . Non-combat . | . . . Combat . | . . . Robot Hacks Applied . | . . . Relay Couplers Released . | . . . Robots Rewired . | . . . Allies Hacked . | . . . Hacks Repelled . | . . . Allies | -11 -10 -9 -------- Run | Scr Mat Mat Total Allies . | . . . Largest Group . | . . . Highest-Rated Group . | . . . Highest-Rated Ally . | . . . Total Orders . | . . . Ally Attacks . | . . . Total Damage . | . . . Kills . | . . . Allies Corrupted . | . . . Allies Melted . | . . . Intel | -11 -10 -9 ------- Run | Scr Mat Mat Robot Analysis Total . | . . . Derelict Logs Recovered . | . . . Drone Launches . | . . . Drone Recoveries . | . . . Exploration | -11 -10 -9 ------------- Run | Scr Mat Mat Turns Passed 839 | 56 652 131 Spaces Moved 461 | 35 377 49 Core 8 | 8 . . Treads 94 | 27 53 14 Legs . | . . . Wheels 359 | . 324 35 Hover . | . . . Flight . | . . . Fastest Speed 50 | 50 80 80 Average Speed 96 | 137 91 102 Slowest Speed 160 | 160 160 160 Overloaded Moves . | . . . Propulsion Burnouts . | . . . Robots Hopped . | . . . Cave-ins Triggered . | . . . Exploration Rate (%) 20 | 4 48 9 Regions Visited 2 Branch Regions . Pre-discovered Areas . | . . . Known Exits Taken . | . . . Unknown Exits Taken 2 | 1 1 . Scrap Searched . | . . . Spaces Dug . | . . . Terrain Destroyed . | . . . Melee . | . . . Projectile . | . . . AOE . | . . . Actions | -11 -10 -9 --------- Run | Scr Mat Mat Total 682 | 40 541 101 Wait 95 | . 75 20 Move 459 | 34 376 49 Hop . | . . . Pick Up . | . . . Fast Attach 21 | 6 11 4 Attach 1 | . . 1 Detach . | . . . Swap 2 | . 2 . Drop 8 | . 7 1 Fire 92 | . 70 22 Melee . | . . . Ram . | . . . Kick . | . . . Crush 4 | . . 4 Escape Stasis . | . . . Rewire . | . . . Trap . | . . . Miscellaneous . | . . . Route ------- -11/Scrapyard -10/Materials (discovered 4 exits: [*Mat x2] / [*Min x2]) -9/Materials History --------- Turn | Location | Event 30 | -11/Scrapyard | Discovered new exit (range 16) 57 | -11/Scrapyard | Entered Materials 205 | -10/Materials | Repaired Assault Rifle 233 | -10/Materials | Repaired Lgt. Ion Engine 285 | -10/Materials | Discovered new exit (range 15) 308 | -10/Materials | Build established: Mutant 421 | -10/Materials | Discovered new exit (range 9) 678 | -10/Materials | Discovered new exit (range 8) 705 | -10/Materials | Discovered new exit (range 5) 709 | -10/Materials | Entered another Materials area 709 | -9/Materials | Evolved 2 slots: Utility x1, Weapon x1 840 | -9/Materials | Self-destructed Last Messages --------------- 00765_ Acquired Lgt. Treads. 00766_ Dropped Wheel. 00768_ Acquired Lgt. Treads. 00770_ Acquired 15 matter. 00773_ Acquired Beam Rifle. 00775_ Ion Engine destroyed. 00777_ Acquired Imp. Ion Engine. 00779_ U-05 Engineer destroyed. 00781_ S-10 Pest destroyed. 00782_ U-05 Engineer lays Concrete. 00799_ Beam Rifle destroyed. 00824_ Imp. Heat Sink destroyed. 00824_ Matter Filter disabled. 00830_ Lgt. Treads destroyed. 00833_ Sml. Laser destroyed. 00833_ Slammed into Y-45 Defender. 00834_ Imp. Ion Engine destroyed. 00835_ Slammed into Y-45 Defender. 00836_ Imp. Heat Sink destroyed. 00837_ Slammed into Y-45 Defender. Map ----- +----------------------------------------------------+ | ???????????# "T" ????????????????? | | ???????????# " " ????????????????? | | ???????????#### ! #??????????????????????? | | ??????????????# % #??????????????????????? | | ??????????????# =%#??????????????????????? | | ??????????????# ! =#??????????????????????? | | ??????????????# #??????????????????????? | | ??????????????# """ #??????????????????????? | | ??????????????# """ ####???????????????????? | | ????????????### """ !!##??????????????????? | | ????????? !#??????????????????? | | ????????? !#??????????????????? | | ????????? """ !#??????????????????? | | ????????? """ u !#??????????????????? | | ???????? """ !!##??????????????????? | | ????????? ####???????????????????? | | ????????? #??????????????????????? | | ?????????? #"Y"# #??????????????????????? | | ??????????? #"""# = ##########?????????????? | | ?????????????#?#??##### ! ## ??????????????? | | ??????????????????????# ## """"??????????????? | | ??????????????????????# ## """"??????????????? | | ?????????????????????## ## """""?????????????? | | ?????????????????????# # """""#????????????? | | ?????????????????????# ss# %""""#????????????? | | ?????????????????????# @%+ """""#????????????? | | ?????????????????????# Y %# """""?????????????? | | ?????????????????????# %# #????????????? | | ?????????????????????### ####+#######????????????? | | ???????????????????????# ????????????????????????? | | ???????????????????????# ????????????????????????? | | ???????????????????????# ????????????????????????? | | ???????????????????????+ ????????????????????????? | | ???????????????????????# ????????????????????????? | | ???????????????????????# ????????????????????????? | | ???????????????????????? ????????????????????????? | | ?????????????????????????????????????????????????? | | ?????????????????????????????????????????????????? | | ?????????????????????????????????????????????????? | | ?????????????????????????????????????????????????? | | ?????????????????????????????????????????????????? | | ?????????????????????????????????????????????????? | | ?????????????????????????????????????????????????? | | ?????????????????????????????????????????????????? | | ?????????????????????????????????????????????????? | | ?????????????????????????????????????????????????? | | ?????????????????????????????????????????????????? | | ?????????????????????????????????????????????????? | | ?????????????????????????????????????????????????? | | | +----------------------------------------------------+ Best States ------------- Heat Dissipation 56 Energy Generation 12 Energy Capacity 265 Matter Stores 300 Matter Capacity 300 Sight Range 16 Terrain Scan Range 14 Terrain Scan Density 10 Evasion (%) 44 Recoil Reduction 2 Item Schematics ----------------- None Robot Schematics ------------------ None Fabricated ------------ Nothing Alien Tech Used ----------------- None Achievements -------------- None Challenges ------------ None Game ------ Seed LightningGuidedAccelerator Manual? 0 Play Time 00:07:31 Cumulative 37.3 hours Start 2020.06.14 @ 12:08:56 End 2020.06.14 @ 16:31:19 Sessions 1 Manual Loads 0 Difficulty Rogue Special Mode None Game No. 85 Rogue 85 Adventurer 0 Explorer 0 Win Type - Total 0 Types 0/0/0/0/0/0/0 Lore% 24 Gallery% 26 Achievement% 22 Wizard Run 0 Options --------- ASCII 0 Keyboard 0 Movement Numpad Keybinds 0 Fullscreen 1 Font 18/SmallcapsGlow Map View 76x50 Tactical HUD 1 Map Filters NONE Filters NONE Steam 1 RUN: f1654f99-2fd2-41d1-b2b8-abc6f54a28de